fUSD/lending_fUSD_20240425
["ID","MTS","AMOUNT","RATE_DAILY","PERIOD"]
[323514346,1714061454199,-508.53,0.00011814,2]
[323514347,1714061454212,-500.0,0.00011814,2]
[323514348,1714061454225,-164.25457915,0.00011814,2]
[323514349,1714061454237,-799.26,0.00011814,2]
[323514350,1714061454250,-500.0,0.00011814,2]
[323514351,1714061454262,-503.2,0.00011814,2]
[323514352,1714061454275,-831.21,0.00011814,2]
[323514353,1714061454288,-833.43,0.00011814,2]
[323514354,1714061454301,-511.13,0.00011814,2]
[323514355,1714061454314,-1868.82,0.00011814,2]
[323514356,1714061454327,-11091.09,0.00011814,2]
[323514357,1714061454339,-500.0,0.00011814,2]
[323514358,1714061454353,-500.0,0.00011814,2]
[323514359,1714061454366,-500.0,0.00011814,2]
[323514360,1714061454380,-888.54,0.00011814,2]
[323514361,1714061454393,-1996.88,0.00011814,2]
[323514362,1714061454406,-500.0,0.00011814,2]
[323514363,1714061454422,-807.23,0.00011814,2]
[323514364,1714061454435,-500.0,0.00011814,2]
[323514365,1714061454447,-1536.64,0.00011814,2]
[323514366,1714061454460,-771.51,0.00011814,2]
[323514367,1714061454473,-500.0,0.00011814,2]
[323514368,1714061454487,-28017.29,0.00011814,2]
[323514369,1714061454505,-562.79,0.00011814,2]
[323514370,1714061454517,-500.0,0.00011814,2]
[323514371,1714061454530,-500.0,0.00011814,2]
[323514372,1714061454545,-500.16,0.00011814,2]
[323514373,1714061454557,-500.0,0.00011814,2]
[323514374,1714061454570,-500.0,0.00011814,2]
[323514375,1714061454584,-886.04,0.00011814,2]
[323514376,1714061454598,-926.79,0.00011814,2]
[323514377,1714061454611,-680.76,0.00011814,2]
[323514378,1714061454625,-866.51,0.00011814,2]
[323514379,1714061454638,-500.0,0.00011814,2]
[323514380,1714061454651,-500.0,0.00011814,2]
[323514381,1714061454660,-615.65,0.00011814,2]
[323514382,1714061454673,-500.0,0.00011814,2]
[323514383,1714061454683,-500.0,0.00011814,2]
[323514384,1714061454693,-516.18,0.00011814,2]
[323514385,1714061454703,-519.47,0.00011814,2]
[323514386,1714061454712,-2481.66,0.00011814,2]
[323514387,1714061454721,-500.0,0.00011814,2]
[323514388,1714061454730,-500.0,0.00011814,2]
[323514389,1714061454739,-500.0,0.00011814,2]
[323514390,1714061454748,-1195.77,0.00011814,2]
[323514391,1714061454756,-1046.24,0.00011814,2]
[323514392,1714061454766,-500.0,0.00011814,2]
[323514393,1714061454775,-1609.35,0.00011814,2]
[323514394,1714061454784,-3516.17,0.00011814,2]
[323514395,1714061454793,-500.0,0.00011814,2]
[323514396,1714061454801,-500.0,0.00011814,2]
[323514397,1714061454810,-500.0,0.00011814,2]
[323514398,1714061454819,-3437.6,0.00011814,2]
[323514399,1714061454828,-1060.13,0.00011814,2]
[323514400,1714061454836,-500.0,0.00011814,2]
[323514401,1714061454846,-500.0,0.00011814,2]
[323514402,1714061454855,-476.13,0.00011814,2]
[323514403,1714061454864,-500.0,0.00011814,2]
[323514404,1714061454873,-500.0,0.00011814,2]
[323514405,1714061454882,-516.37,0.00011814,2]
[323514406,1714061454891,-500.0,0.00011814,2]
[323514407,1714061454900,-500.0,0.00011814,2]
[323514408,1714061455222,-675.46,0.00011814,2]
[323514409,1714061455253,-500.0,0.00011814,2]
[323514410,1714061455270,-500.0,0.00011814,2]
[323514411,1714061455279,-500.0,0.00011814,2]
[323514412,1714061455289,-870.07,0.00011814,2]
[323514413,1714061455298,-788.19,0.00011814,2]
[323514414,1714061455308,-540.87,0.00011814,2]
[323514415,1714061455317,-1998.38,0.00011814,2]
[323514416,1714061455327,-500.0,0.00011814,2]
[323514417,1714061455337,-155.27,0.00011814,2]
[323514418,1714061455346,-500.0,0.00011814,2]
[323514419,1714061455355,-2359.88,0.00011814,2]
[323514420,1714061455364,-500.0,0.00011814,2]
[323514421,1714061455374,-500.0,0.00011814,2]
[323514422,1714061455383,-506.0,0.00011814,2]
[323514423,1714061455393,-582.42,0.00011814,2]
[323514424,1714061455404,-500.0,0.00011814,2]
[323514425,1714061455414,-2087.94,0.00011814,2]
[323514426,1714061455425,-2158.63,0.00011814,2]
[323514427,1714061455434,-500.0,0.00011814,2]
[323514428,1714061455443,-1590.4,0.00011814,2]
[323514429,1714061455452,-500.0,0.00011814,2]
[323514430,1714061455462,-2906.78,0.00011814,2]
[323514431,1714061455472,-500.0,0.00011814,2]
[323514432,1714061455482,-500.0,0.00011814,2]
[323514433,1714061455496,-500.0,0.00011814,2]
[323514434,1714061455505,-611.92,0.00011814,2]
[323514435,1714061455515,-500.0,0.00011814,2]
[323514436,1714061455524,-500.0,0.00011814,2]
[323514437,1714061455535,-565.89,0.00011814,2]
[323514438,1714061455544,-500.0,0.00011814,2]
[323514439,1714061455553,-500.0,0.00011814,2]
[323514440,1714061455563,-616.23,0.00011814,2]
[323514441,1714061455572,-525.76,0.00011814,2]
[323514442,1714061455582,-925.98,0.00011814,2]
[323514443,1714061455591,-567.55,0.00011814,2]
[323514444,1714061455601,-500.0,0.00011814,2]
[323514445,1714061455610,-500.0,0.00011814,2]
[323514446,1714061455619,-500.0,0.00011814,2]
[323514447,1714061455629,-500.0,0.00011814,2]
[323514448,1714061455638,-1361.58,0.00011814,2]
[323514449,1714061455647,-554.87,0.00011814,2]
[323514450,1714061455656,-500.0,0.00011814,2]
[323514451,1714061455667,-367.98228073,0.00011814,2]
[323514452,1714061455677,-5055.28,0.00011814,2]
[323514453,1714061455686,-656.47,0.00011814,2]
[323514454,1714061455695,-632.07,0.00011814,2]
[323514455,1714061455705,-500.0,0.00011814,2]
[323514456,1714061455714,-500.0,0.00011814,2]
[323514457,1714061455724,-1723.0,0.00011814,2]
[323514458,1714061455733,-500.0,0.00011815,2]
[323514459,1714061455742,-500.0,0.00011815,2]
[323514460,1714061455751,-604.89,0.00011815,2]
[323514461,1714061455760,-964.42,0.00011815,2]
[323514462,1714061455770,-500.0,0.00011815,2]
[323514463,1714061455780,-819.76,0.00011815,2]
[323514464,1714061455789,-500.0,0.00011815,2]
[323514465,1714061455799,-500.0,0.00011815,2]
[323514466,1714061455809,-500.0,0.00011815,2]
[323514467,1714061455818,-1072.85,0.00011815,2]
[323514468,1714061455827,-150.0,0.00011815,2]
[323514469,1714061455837,-500.0,0.00011815,2]
[323514470,1714061455846,-642.41,0.00011815,2]
[323514471,1714061455855,-500.0,0.00011815,2]
[323514472,1714061455864,-697.84,0.00011815,2]
[323514473,1714061455873,-288.01058239,0.00011815,2]
[323514474,1714061455883,-500.0,0.00011815,2]
[323514475,1714061455892,-1042.5,0.00011815,2]
[323514476,1714061455901,-500.0,0.00011815,2]
[323514477,1714061455910,-500.0,0.00011815,2]
[323514478,1714061455921,-500.0,0.00011815,2]
[323514479,1714061455930,-1110.4,0.00011815,2]
[323514480,1714061455939,-500.0,0.00011815,2]
[323514481,1714061455948,-500.0,0.00011815,2]
[323514482,1714061455957,-500.0,0.00011815,2]
[323514483,1714061455966,-500.0,0.00011815,2]
[323514484,1714061455975,-500.0,0.00011815,2]
[323514485,1714061455984,-738.35,0.00011815,2]
[323514486,1714061455994,-796.57,0.00011815,2]
[323514487,1714061456005,-500.0,0.00011815,2]
[323514488,1714061456014,-539.93561061,0.00011815,2]
[323514489,1714061456023,-1013.09,0.00011815,2]
[323514490,1714061456032,-730.43,0.00011815,2]
[323514491,1714061456042,-500.0,0.00011815,2]
[323514492,1714061456051,-500.0,0.00011815,2]
[323514493,1714061456061,-500.0,0.00011815,2]
[323514494,1714061456070,-547.81,0.00011815,2]
[323514495,1714061456079,-500.0,0.00011815,2]
[323514496,1714061456089,-500.0,0.00011815,2]
[323514497,1714061456097,-500.0,0.00011815,2]
[323514498,1714061456108,-500.0,0.00011815,2]
[323514499,1714061456117,-500.0,0.00011815,2]
[323514500,1714061456126,-500.0,0.00011815,2]
[323514501,1714061456136,-500.0,0.00011815,2]
[323514502,1714061456145,-500.0,0.00011815,2]
[323514503,1714061456154,-500.0,0.00011815,2]
[323514504,1714061456164,-500.0,0.00011815,2]
[323514505,1714061456175,-500.0,0.00011815,2]
[323514506,1714061456185,-500.0,0.00011815,2]
[323514507,1714061456195,-500.0,0.00011815,2]
[323514508,1714061456205,-3442.74,0.00011815,2]
[323514509,1714061456214,-798.58,0.00011815,2]
[323514510,1714061456223,-500.0,0.00011815,2]
[323514511,1714061456233,-500.0,0.00011815,2]
[323514512,1714061456243,-2094.01,0.00011815,2]
[323514513,1714061456252,-500.0,0.00011815,2]
[323514514,1714061456262,-230.23349946,0.00011815,2]
[323514515,1714061456271,-500.0,0.00011815,2]
[323514516,1714061456281,-1095.89,0.00011815,2]
[323514517,1714061456290,-902.96,0.00011815,2]
[323514518,1714061456300,-500.0,0.00011815,2]
[323514519,1714061456309,-500.0,0.00011815,2]
[323514520,1714061456319,-4543.94,0.00011815,2]
[323514521,1714061456328,-500.0,0.00011815,2]
[323514522,1714061456339,-500.0,0.00011815,2]
[323514523,1714061456349,-1573.96,0.00011815,2]
[323514524,1714061456359,-500.0,0.00011815,2]
[323514525,1714061456368,-500.0,0.00011815,2]
[323514526,1714061456377,-510.11,0.00011815,2]
[323514527,1714061456386,-500.0,0.00011815,2]
[323514528,1714061456396,-500.0,0.00011815,2]
[323514529,1714061456405,-500.0,0.00011815,2]
[323514530,1714061456415,-600.38,0.00011815,2]
[323514531,1714061456426,-824.45,0.00011815,2]
[323514532,1714061456436,-500.0,0.00011815,2]
[323514533,1714061456445,-667.71,0.00011815,2]
[323514534,1714061456455,-500.0,0.00011815,2]
[323514535,1714061456463,-500.0,0.00011815,2]
[323514536,1714061456472,-502.4,0.00011815,2]
[323514537,1714061456482,-1683.97,0.00011815,2]
[323514538,1714061456491,-500.0,0.00011815,2]
[323514539,1714061456502,-500.0,0.00011815,2]
[323514540,1714061456513,-4959.58,0.00011815,2]
[323514541,1714061456522,-1609.53,0.00011815,2]
[323514542,1714061456531,-6531.48,0.00011815,2]
[323514543,1714061456541,-500.0,0.00011816,2]
[323514544,1714061456551,-500.0,0.00011816,2]
[323514545,1714061456560,-500.0,0.00011816,2]
[323514546,1714061456569,-500.0,0.00011816,2]
[323514547,1714061456579,-500.0,0.00011816,2]
[323514548,1714061456618,-500.0,0.00011816,2]
[323514549,1714061456628,-500.0,0.00011816,2]
[323514550,1714061456638,-500.0,0.00011816,2]
[323514551,1714061456649,-500.0,0.00011816,2]
[323514552,1714061456658,-500.0,0.00011816,2]
[323514553,1714061456669,-500.0,0.00011816,2]
[323514554,1714061456679,-512.87,0.00011816,2]
[323514555,1714061456688,-244.75831148,0.00011816,2]
[323514556,1714061456698,-716.28,0.00011816,2]
[323514557,1714061456707,-500.0,0.00011816,2]
[323514558,1714061456717,-500.0,0.00011816,2]
[323514559,1714061456726,-500.0,0.00011816,2]
[323514560,1714061456736,-500.0,0.00011816,2]
[323514561,1714061456747,-500.0,0.00011816,2]
[323514562,1714061456756,-500.0,0.00011816,2]
[323514563,1714061456765,-500.0,0.00011816,2]
[323514564,1714061456775,-500.0,0.00011816,2]
[323514565,1714061456784,-500.0,0.00011816,2]
[323514566,1714061456794,-500.0,0.00011816,2]
[323514567,1714061456804,-624.14,0.00011816,2]
[323514568,1714061456814,-500.0,0.00011816,2]
[323514569,1714061456823,-500.0,0.00011816,2]
[323514570,1714061456833,-302.24,0.00011816,2]
[323514571,1714061456842,-500.0,0.00011816,2]
[323514572,1714061456851,-500.0,0.00011816,2]
[323514573,1714061456862,-500.0,0.00011816,2]
[323514574,1714061456872,-500.0,0.00011816,2]
[323514575,1714061456882,-500.0,0.00011816,2]
[323514576,1714061456891,-500.0,0.00011816,2]
[323514577,1714061456901,-500.0,0.00011816,2]
[323514578,1714061456912,-500.0,0.00011816,2]
[323514579,1714061456923,-500.0,0.00011816,2]
[323514580,1714061456932,-500.0,0.00011816,2]
[323514581,1714061456941,-531.28,0.00011816,2]
[323514582,1714061456952,-500.0,0.00011816,2]
[323514583,1714061456962,-150.0,0.00011816,2]
[323514584,1714061456971,-7191.2548939,0.00011816,2]
[323514585,1714061456981,-150.0,0.00011818,2]
[323514586,1714061456991,-150.0,0.00011818,2]
[323514587,1714061457001,-150.0,0.00011821,2]
[323514588,1714061457010,-150.0,0.00011823,2]
[323514589,1714061457019,-150.0,0.00011825,2]
[323514590,1714061457030,-150.0,0.00011829,2]
[323514591,1714061457042,-150.0,0.00011831,2]
[323514592,1714061457052,-150.0,0.00011839,2]
[323514593,1714061457062,-150.0,0.00011845,2]
[323514594,1714061457071,-150.0,0.00011849,2]
[323514595,1714061457081,-150.0,0.00011849,2]
[323514596,1714061457092,-150.0,0.0001185,2]
[323514597,1714061457104,-150.0,0.00011854,2]
[323514598,1714061457114,-150.0,0.00011855,2]
[323514599,1714061457125,-150.0,0.00011855,2]
[323514600,1714061457137,-7191.2548939,0.00011858,2]
[323514601,1714061457147,-462667.59074506,0.0001186,2]
[323514602,1714061457157,-150.0,0.0001186,2]
[323514603,1714061457167,-207.891352,0.0001186,2]
[323514604,1714061457179,-151.0,0.0001186,2]
[323514605,1714061457190,-151.0,0.0001186,2]
[323514606,1714061457201,-151.0,0.0001186,2]
[323514607,1714061457211,-150.0,0.00011861,2]
[323514608,1714061457222,-150.0,0.00011862,2]
[323514609,1714061457233,-150.0,0.00011862,2]
[323514610,1714061457245,-150.0,0.00011867,2]
[323514611,1714061457256,-150.0,0.00011869,2]
[323514612,1714061457269,-150.0,0.0001187,2]
[323514613,1714061457279,-150.0,0.00011879,2]
[323514614,1714061457289,-429.0,0.0001188,2]
[323514615,1714061457299,-216.0,0.0001188,2]
[323514616,1714061457308,-154.0,0.0001188,2]
[323514617,1714061457319,-150.0,0.00011884,2]
[323514618,1714061457330,-150.0,0.0001189,2]
[323514619,1714061457340,-845778.99138719,0.000119,2]
[323514620,1714061457351,-151.0,0.000119,2]
[323514621,1714061457361,-785.0,0.000119,2]
[323514622,1714061457371,-151.0,0.000119,2]
[323514623,1714061457381,-151.0,0.000119,2]
[323514624,1714061457390,-5013.57370066,0.000119,2]
[323514625,1714061457400,-7191.2548939,0.000119,2]
[323514626,1714061457411,-1000.0,0.00011903,2]
[323514627,1714061457421,-500.0,0.00011903,2]
[323514628,1714061457430,-1000.0,0.00011904,2]
[323514629,1714061457440,-500.0,0.00011904,2]
[323514630,1714061457450,-500.0,0.00011904,2]
[323514631,1714061457460,-10000.0,0.00011975,2]
[323514632,1714061457470,-1176.00417552,0.00011998,2]
[323514633,1714061457480,-10569.49520834,0.00011998,2]
[323514634,1714061457491,-238.2718178,0.00011998,2]
[323514635,1714061457503,-155.0,0.00011998,2]
[323514636,1714061457513,-246.53906713,0.00011998,2]
[323514637,1714061457524,-155.0,0.00011998,2]
[323514638,1714061457535,-343.26553462,0.00011998,2]
[323514639,1714061457545,-203.86541058,0.00011998,2]
[323514640,1714061457555,-477.17397627,0.00011998,2]
[323514641,1714061457566,-2121.75343201,0.00011998,2]
[323514642,1714061457577,-2357.76557745,0.00011998,2]
[323514643,1714061457587,-189.56005963,0.00011999,2]
[323514644,1714061457597,-208.97892594,0.00011999,2]
[323514645,1714061457608,-730.43050307,0.00011999,2]
[323514646,1714061457619,-155.0,0.00011999,2]
[323514647,1714061457629,-185.35406833,0.00011999,2]
[323514648,1714061457640,-4584.31769581,0.00011999,2]
[323514649,1714061457650,-1909996.77433894,0.00012,2]
[323514650,1714061457668,-89534.59415311,0.00012,2]
[323514651,1714061457682,-123399.88844957,0.00012,2]
[323514652,1714061458455,-500.0,0.00010991,2]
[323514653,1714061458465,-298.27053476,0.00010992,2]
[323514654,1714061458488,-201.72946524,0.00010992,2]
[323514655,1714061458498,-500.0,0.00010992,2]
[323514656,1714061458512,-879.47053476,0.00011265,2]
[323514657,1714061458524,-189.52946524,0.00011265,2]
[323514658,1714061458534,-500.0,0.00011265,2]
[323514659,1714061458545,-500.0,0.00011266,2]
[323514660,1714061458554,-1069.0,0.00011539,2]
[323514661,1714061458564,-500.0,0.00011539,2]
[323514662,1714061458573,-208.2677438,0.00011701,2]
[323514663,1714061458584,-1069.0,0.00011813,2]
[323514664,1714061458593,-15209.80279096,0.00012,2]
[323514665,1714061458620,-7434.08593045,0.00012,2]
[323514666,1714061458648,-397.19,0.00011265,2]
[323514667,1714061458658,-500.0,0.0001154,2]
[323514668,1714061458667,-320.27,0.00012,2]
[323514669,1714061458699,-454.19482169,0.00012,2]
[323514670,1714061458710,-827.42049515,0.00012,2]
[323514671,1714061458722,-365.0,0.00012,2]
[323514672,1714061458733,-600.35226766,0.00012,2]
[323514673,1714061458745,-1089.12513476,0.00012,2]
[323514674,1714061458764,-1668.7553954,0.00012,2]
[323514675,1714061458775,-1005.24563092,0.00012,2]
[323514676,1714061459315,567.07758662,8.219e-05,2]
[323514677,1714061459463,-6920.7489188,0.000109,2]
[323514678,1714061459472,-500.0,0.00010991,2]
[323514679,1714061459482,-500.0,0.00010992,2]
[323514680,1714061459494,-500.0,0.00011265,2]
[323514681,1714061459504,-500.0,0.00011266,2]
[323514682,1714061459513,-221.59474408,0.00011266,2]
[323514683,1714061459523,-385.48256862,0.00011538,2]
[323514684,1714061459533,-267.66422773,0.00011539,2]
[323514685,1714061459543,-487.06539825,0.00011539,2]
[323514686,1714061459552,-217.91758367,0.00011539,2]
[323514687,1714061459561,-31.2427002,0.00011539,2]
[323514688,1714061459582,-468.7572998,0.00011539,2]
[323514689,1714061459592,-500.0,0.00011814,2]
[323514690,1714061459602,-601.99597346,0.00012,2]
[323514691,1714061459621,-3040.2,0.00012,2]
[323514692,1714061459666,-667.29737776,0.00012,2]
[323514693,1714061459691,-7715.78040678,0.00012,2]
[323514694,1714061459766,-2236.2290654,0.00012,2]
[323514695,1714061460025,19677.20707183,8.219e-05,2]
[323514696,1714061461834,549.27276469,6.575e-05,2]
[323514697,1714061462012,1374.60563136,8.219e-05,2]
[323514698,1714061462728,399.27306284,8.219e-05,2]
[323514699,1714061468068,20172.44350271,8.219e-05,2]
[323514700,1714061468277,777.0838034,8.219e-05,2]
[323514701,1714061471381,559.66150284,8.219e-05,2]
[323514702,1714061475236,1374.60563136,8.219e-05,2]
[323514703,1714061477039,1471.99909209,8.219e-05,2]
[323514704,1714061480564,19680.8590078,8.219e-05,2]
[323514705,1714061482165,399.27306284,8.219e-05,2]
[323514706,1714061488070,20172.44350271,8.219e-05,2]
[323514707,1714061493816,1374.60563136,8.219e-05,2]
[323514708,1714061493854,559.66150284,8.219e-05,2]
[323514709,1714061495049,1471.42571887,8.219e-05,2]
[323514710,1714061500165,399.27306284,8.219e-05,2]
[323514711,1714061501076,19680.8590078,8.219e-05,2]
[323514712,1714061504134,-170.57,8.668e-05,2]
[323514713,1714061504154,-179.7000076,0.0001,2]
[323514714,1714061504174,-200.35068603,0.00010409,2]
[323514715,1714061504194,-2800.0,0.0001041,2]
[323514716,1714061504219,-170.57,0.00010835,2]
[323514717,1714061504241,-10453.640373,0.00010936,2]
[323514718,1714061504262,-500.0,0.00010991,2]
[323514719,1714061504283,-500.0,0.00010991,2]
[323514720,1714061504304,-540.6,0.00010991,2]
[323514721,1714061504566,-500.0,0.00010991,2]
[323514722,1714061504589,-535.02,0.00010991,2]
[323514723,1714061504612,-500.0,0.00010991,2]
[323514724,1714061504632,-500.0,0.00010991,2]
[323514725,1714061504653,-500.0,0.00010991,2]
[323514726,1714061504674,-508.64,0.00010991,2]
[323514727,1714061504697,-500.0,0.00010991,2]
[323514728,1714061504722,-1280.53,0.00010991,2]
[323514729,1714061504743,-500.0,0.00010991,2]
[323514730,1714061504765,-596.92,0.00010991,2]
[323514731,1714061504786,-500.0,0.00010991,2]
[323514732,1714061504807,-500.0,0.00010991,2]
[323514733,1714061504830,-531.26,0.00010991,2]
[323514734,1714061504851,-500.0,0.00010991,2]
[323514735,1714061504873,-760.72,0.00010991,2]
[323514736,1714061504894,-520.5,0.00010991,2]
[323514737,1714061504915,-772.32,0.00010991,2]
[323514738,1714061504937,-973.8,0.00010992,2]
[323514739,1714061504959,-500.0,0.00010992,2]
[323514740,1714061504985,-500.0,0.00010992,2]
[323514741,1714061505006,-500.0,0.00010992,2]
[323514742,1714061505026,-500.0,0.00010992,2]
[323514743,1714061505048,-500.0,0.00010992,2]
[323514744,1714061505069,-500.0,0.00010992,2]
[323514745,1714061505090,-500.0,0.00010992,2]
[323514746,1714061505112,-500.0,0.00010992,2]
[323514747,1714061505134,-500.0,0.00010992,2]
[323514748,1714061505155,-500.0,0.00010992,2]
[323514749,1714061505177,-9204.85893337,0.00010992,2]
[323514750,1714061505269,2144.51057233,8.219e-05,2]
[323514751,1714061509235,1374.60563136,8.219e-05,2]
[323514752,1714061511377,559.66150284,8.219e-05,2]
[323514753,1714061517079,19669.90319989,8.219e-05,2]
[323514754,1714061525241,1374.60563136,8.219e-05,2]
[323514755,1714061533378,559.66150284,8.219e-05,2]
[323514756,1714061547244,217.72407773,8.219e-05,2]
[323514757,1714061548166,399.27306284,8.219e-05,2]
[323514758,1714061551420,559.66150284,8.219e-05,2]
[323514759,1714061553306,19677.20707183,8.219e-05,2]
[323514760,1714061555048,1471.99909209,8.219e-05,2]
[323514761,1714061563634,173.06930294,8.219e-05,2]
[323514762,1714061564171,189.05958933,8.219e-05,2]
[323514763,1714061567244,1374.34488026,8.219e-05,2]
[323514764,1714061567405,559.66150284,8.219e-05,2]
[323514765,1714061573080,19680.8590078,8.219e-05,2]
[323514766,1714061579092,1471.99909209,8.219e-05,2]
[323514767,1714061579608,173.06930294,8.219e-05,2]
[323514769,1714061587662,1374.60563136,8.219e-05,2]
[323514770,1714061591387,559.66150284,8.219e-05,2]
[323514771,1714061593089,19673.55513586,8.219e-05,2]
[323514772,1714061597062,1471.99909209,8.219e-05,2]
[323514773,1714061597889,303.925539,8.219e-05,2]
[323514774,1714061607386,559.66150284,8.219e-05,2]
[323514775,1714061609246,1374.60563136,8.219e-05,2]
[323514776,1714061613077,19677.20707183,8.219e-05,2]
[323514777,1714061619070,1471.99909209,8.219e-05,2]
[323514778,1714061627398,559.66150284,8.219e-05,2]
[323514779,1714061631253,1374.60563136,8.219e-05,2]
[323514780,1714061633100,19677.20707183,8.219e-05,2]
[323514781,1714061635083,1470.56565904,8.219e-05,2]
[323514782,1714061643390,559.66150284,8.219e-05,2]
[323514783,1714061653087,19677.20707183,8.219e-05,2]
[323514784,1714061653262,1374.60563136,8.219e-05,2]
[323514785,1714061655067,909.09098093,8.219e-05,2]
[323514786,1714061659392,559.66150284,8.219e-05,2]
[323514787,1714061671253,1374.60563136,8.219e-05,2]
[323514788,1714061677236,10141.98151534,8.219e-05,2]
[323514789,1714061683404,559.66150284,8.219e-05,2]
[323514790,1714061687272,1374.60563136,8.219e-05,2]
[323514791,1714061697394,559.66150284,8.219e-05,2]
[323514792,1714061705263,1329.64293809,8.219e-05,2]
[323514793,1714061717400,559.66150284,8.219e-05,2]
[323514794,1714061735405,498.67711261,8.219e-05,2]
[323514795,1714061761792,-157.28716472,8.875e-05,2]
[323514796,1714061761817,-259.21283528,8.875e-05,2]
[323514797,1714061785288,-313.84557091,8.873e-05,2]
[323514798,1714061785311,-1243.80447587,8.873e-05,2]
[323514799,1714061785333,-155.0,8.874e-05,2]
[323514800,1714061785355,-883.34995322,8.875e-05,2]
[323514801,1714061807351,-1165.99698669,8.874e-05,2]
[323514802,1714061807375,-984.00301331,8.875e-05,2]
[323514803,1714061903834,13510.33,8.5e-05,2]
[323514804,1714061981818,170.57,7.131e-05,2]
[323514805,1714061996672,-152.0,0.00015333,14]
[323514806,1714062101936,578.52,8.219e-05,2]
[323514807,1714062126632,-565.52451577,8.686e-05,2]
[323514808,1714062126655,-200.35068603,8.686e-05,2]
[323514809,1714062126677,-419.407149,8.687e-05,2]
[323514810,1714062126702,-325.78301861,8.73e-05,2]
[323514811,1714062126724,-1870.24741268,8.73e-05,2]
[323514812,1714062126746,-164.55036219,8.731e-05,2]
[323514813,1714062126768,-454.13685572,8.731e-05,2]
[323514814,1714062127765,-4000.0,8.731e-05,2]
[323514815,1714062128285,-2888.82398497,8.731e-05,2]
[323514816,1714062128307,-150.0,8.775e-05,2]
[323514817,1714062128329,-961.17601503,8.776e-05,2]
[323514818,1714062128886,-1777.02433335,8.685e-05,2]
[323514819,1714062128907,-1056.20110023,8.776e-05,2]
[323514820,1714062128931,-1166.77456642,8.818e-05,2]
[323514821,1714062129600,-4000.0,8.818e-05,2]
[323514822,1714062130245,-3455.70543358,8.818e-05,2]
[323514823,1714062130267,-216.57,8.818e-05,2]
[323514824,1714062130288,-200.0,8.867e-05,2]
[323514825,1714062130309,-127.72456642,8.867e-05,2]
[323514826,1714062131443,-37.71543358,8.867e-05,2]
[323514827,1714062131464,-53.60801184,8.875e-05,2]
[323514828,1714062131485,-1825.05,8.88e-05,2]
[323514829,1714062131512,-2083.62655458,8.891e-05,2]
[323514830,1714062132176,-4000.0,8.891e-05,2]
[323514831,1714062132918,-4000.0,8.891e-05,2]
[323514832,1714062133698,-4000.0,8.891e-05,2]
[323514833,1714062134406,-4000.0,8.891e-05,2]
[323514834,1714062135143,-4000.0,8.891e-05,2]
[323514835,1714062136000,-1816.37344542,8.891e-05,2]
[323514836,1714062149712,2183.62655458,8.219e-05,2]
[323514837,1714062149732,4000.0,8.219e-05,2]
[323514838,1714062149755,1317.47227521,8.219e-05,2]
[323514839,1714062169692,7501.09882979,8.219e-05,2]
[323514840,1714062178352,-3472.69,8.914e-05,2]
[323514841,1714062178372,-527.31,8.924e-05,2]
[323514842,1714062179012,-4000.0,8.924e-05,2]
[323514843,1714062179697,-4000.0,8.924e-05,2]
[323514844,1714062189690,7501.09882979,8.219e-05,2]
[323514845,1714062221471,-305.39391058,8.921e-05,2]
[323514846,1714062221492,-1984.24290083,8.922e-05,2]